bitfinex-derivatives/quotes_SOLF0:USTF0_20260315
["timestamp","ask_amount","ask_price","bid_price","bid_amount"]
[1773580138179,8.54308518,88.005,87.84,7.97840085]
[1773580138379,35.72,87.999,87.84,7.97840085]
[1773580138579,8.54308518,88.009,87.84,7.97840085]
[1773580138780,35.7,88.008,87.84,7.97840085]
[1773580138980,35.7,88.007,87.84,7.97840085]
[1773580139178,35.72,88.006,87.84,7.97840085]
[1773580139380,35.72,88.005,87.851,7.89239742]
[1773580139579,35.72,88.004,87.851,7.89239742]
[1773580139785,10.351195,88.035,87.851,7.89239742]
[1773580139786,35.72,88.003,87.851,7.89239742]
[1773580139986,35.72,88.002,87.851,7.89239742]
[1773580140190,35.72,88.001,87.851,7.89239742]
[1773580140390,35.72,88.0,87.851,7.89239742]
[1773580140591,10.229,87.965,87.875,7.8975844]
[1773580140993,35.72,87.967,87.875,7.8975844]
[1773580141192,35.72,87.972,87.877,7.8975844]
[1773580141385,35.72,87.971,87.877,7.8975844]
[1773580141585,10.231,87.953,87.877,7.8975844]
[1773580141787,35.72,87.953,87.877,7.8975844]
[1773580141989,8.47081567,88.028,87.877,7.8975844]
[1773580142293,10.227,87.983,87.895,7.90891311]
[1773580142592,35.72,87.982,87.895,7.90891311]
[1773580143295,10.227,87.981,87.899,7.90187907]
[1773580143798,10.229,87.97,87.899,7.90187907]
[1773580145185,35.72,87.982,87.899,7.90187907]
[1773580145389,35.72,87.982,87.902,7.95282867]
[1773580145997,35.72,87.982,87.915,7.95834122]
[1773580147495,10.228,87.971,87.915,7.95834122]
[1773580148196,10.229,87.959,87.915,7.95834122]
[1773580148594,158.97,88.045,87.851,7.88339577]
[1773580148800,158.974,88.043,87.851,7.88339577]
[1773580149100,17.09564868,88.042,87.868,7.88339577]
[1773580149295,20.448,88.004,87.868,7.88339577]
[1773580149695,158.991,88.033,87.871,7.87868591]
[1773580149895,159.0,88.028,87.871,7.87868591]
[1773580150094,17.09564868,88.027,87.871,7.87868591]
[1773580150793,159.015,88.02,87.871,7.87868591]
[1773580151101,17.09564868,88.019,87.871,7.87868591]
[1773580151303,10.235,87.907,87.871,7.87868591]
[1773580151497,35.7,87.933,87.871,7.87868591]
[1773580151696,10.232,87.93,87.871,7.87868591]
[1773580152601,10.234,87.917,87.871,7.87868591]
[1773580152798,35.7,87.943,87.809,7.88066441]
[1773580152997,35.7,87.943,87.821,7.88066441]
[1773580153496,10.235,87.909,87.83,7.88600375]
[1773580154200,35.72,87.936,87.83,7.88600375]
[1773580154405,10.235,87.911,87.844,7.91180418]
[1773580154600,35.72,87.937,87.844,7.91180418]
[1773580154996,10.233,87.922,87.856,7.91180418]
[1773580155206,35.72,87.937,87.856,7.91180418]
[1773580155703,10.234,87.913,87.856,7.91180418]
[1773580155903,35.72,87.937,87.856,7.91180418]
[1773580156098,10.237,87.892,87.856,7.91180418]
[1773580156907,10.238,87.882,87.838,7.91367064]
[1773580157204,20.465,87.933,87.838,7.91367064]
[1773580158006,20.458,87.963,87.838,7.91367064]
[1773580158208,35.72,87.962,87.838,7.91367064]
[1773580158402,35.72,87.961,87.838,7.91367064]
[1773580158599,10.236,87.897,87.838,7.91367064]
[1773580158803,8.63663581,87.989,87.838,7.91367064]
[1773580158804,35.72,87.919,87.838,7.91367064]
[1773580159103,35.72,87.919,87.701,28.2023157]
[1773580159104,35.72,87.918,87.821,7.92145939]
[1773580159305,35.72,87.917,87.821,7.92145939]
[1773580159607,35.72,87.916,87.821,7.92145939]
[1773580159906,35.72,87.915,87.821,7.92145939]
[1773580160103,35.72,87.914,87.821,7.92145939]
[1773580160502,10.241,87.853,87.801,7.99731412]
[1773580160702,35.72,87.914,87.801,7.99731412]
[1773580161004,20.471,87.905,87.8,7.99731412]
[1773580161201,35.72,87.914,87.8,7.99731412]
[1773580161407,124.0,87.94,87.809,8.01169293]
[1773580161602,20.464,87.934,87.809,8.01169293]
[1773580161803,35.72,87.933,87.812,8.01169293]
[1773580162103,180.13814208,88.011,87.812,8.01169293]
[1773580162104,20.457,87.964,87.812,8.01169293]
[1773580162303,35.72,87.963,87.812,8.01169293]
[1773580162508,10.234,87.921,87.848,8.01169293]
[1773580162708,35.72,87.942,87.848,8.01169293]
[1773580162907,35.72,87.943,87.848,8.01169293]
[1773580163099,200.1,87.99,87.851,8.00972846]
[1773580163100,35.72,87.97,87.851,8.00972846]
[1773580163514,10.23,87.95,87.879,7.93817803]
[1773580165202,10.231,87.94,87.879,7.93817803]
[1773580165403,10.231,87.94,87.782,20.70455352]
[1773580165404,35.72,87.97,87.809,7.90748778]
[1773580166006,20.461,87.949,87.825,7.89438231]
[1773580166411,35.72,87.948,87.825,7.89438231]
[1773580167409,10.237,87.89,87.825,7.89438231]
[1773580167610,35.72,87.948,87.825,7.89438231]
[1773580168014,10.239,87.87,87.825,7.89438231]
[1773580169405,35.72,87.895,87.807,7.89066828]
[1773580170418,35.72,87.895,87.809,7.92439471]
[1773580170712,35.72,87.895,87.791,7.92439471]
[1773580171019,35.72,87.894,87.809,7.92439471]
[1773580171319,10.243,87.838,87.809,7.92439471]
[1773580171710,10.243,87.838,87.792,7.92900274]
[1773580172017,10.242,87.85,87.809,7.92900274]
[1773580172417,35.72,87.874,87.809,7.92900274]
[1773580172719,35.72,87.874,87.772,7.92931416]
[1773580172920,35.72,87.874,87.789,7.92931416]
[1773580173619,35.72,87.874,87.806,7.92801832]
[1773580173812,35.72,87.874,87.808,22.6966995]
[1773580174013,21.10614208,87.939,87.808,22.6966995]
[1773580174014,35.72,87.899,87.809,7.92801832]
[1773580174216,35.72,87.898,87.809,7.92801832]
[1773580175221,10.242,87.851,87.809,7.92801832]
[1773580175818,10.24,87.862,87.809,7.92801832]
[1773580179121,35.72,87.898,87.809,7.92801832]
[1773580179322,10.241,87.853,87.809,7.92801832]
[1773580180525,10.243,87.843,87.808,14.76868118]
[1773580180926,8.57895254,87.897,87.809,7.93136873]
[1773580181227,10.241,87.857,87.809,7.93136873]
[1773580182018,10.242,87.848,87.809,7.93136873]
[1773580182929,10.243,87.839,87.808,14.76868118]
[1773580184026,10.242,87.848,87.809,7.96555451]
[1773580185326,35.72,87.898,87.809,7.96555451]
[1773580185918,20.475,87.887,87.809,7.96555451]
[1773580186942,35.72,87.898,87.809,7.96555451]
[1773580187526,10.241,87.855,87.809,7.96555451]
[1773580187830,35.72,87.898,87.809,7.96555451]
[1773580188529,10.242,87.848,87.809,7.96555451]
[1773580189432,10.243,87.84,87.809,7.96555451]
[1773580190725,10.241,87.857,87.809,7.96555451]
[1773580191130,35.72,87.881,87.809,7.96555451]
[1773580191625,35.72,87.881,87.808,14.76868118]
[1773580192829,10.244,87.831,87.808,14.76868118]
[1773580194127,10.243,87.84,87.809,7.94848592]
[1773580195526,35.72,87.881,87.809,7.94848592]
[1773580195527,10.241,87.86,87.809,7.94848592]
[1773580196624,10.242,87.851,87.809,7.94848592]
[1773580197734,35.72,87.881,87.809,7.94848592]
[1773580198631,10.243,87.843,87.809,7.94848592]
[1773580200534,35.72,87.881,87.808,14.76868118]
[1773580200839,35.72,87.881,87.778,7.92467817]
[1773580201639,10.245,87.819,87.778,7.92467817]
[1773580202832,10.246,87.809,87.763,7.88251347]
[1773580203633,10.245,87.82,87.763,7.88251347]
[1773580204439,10.244,87.829,87.763,7.88251347]
[1773580204833,8.61588606,87.871,87.763,7.88251347]
[1773580205034,8.61588606,87.88,87.766,7.89011348]
[1773580205442,35.72,87.881,87.766,7.89011348]
[1773580205836,20.482,87.858,87.766,7.89011348]
[1773580207736,20.482,87.857,87.766,7.89011348]
[1773580208345,10.247,87.808,87.766,7.89011348]
[1773580209143,10.246,87.809,87.766,7.89011348]
[1773580210538,10.247,87.801,87.766,7.89011348]
[1773580211439,10.246,87.81,87.766,7.89011348]
[1773580211946,10.245,87.819,87.766,7.89011348]
[1773580212345,35.72,87.827,87.766,7.89011348]
[1773580212639,10.246,87.811,87.766,7.89011348]
[1773580213239,35.72,87.827,87.766,7.89011348]
[1773580213443,35.72,87.827,87.725,7.92240624]
[1773580214138,35.72,87.827,87.726,7.91644651]
[1773580215141,20.489,87.826,87.726,7.91644651]
[1773580215345,29.12551314,87.826,87.726,7.91644651]
[1773580215536,37.37061625,87.826,87.726,7.91644651]
[1773580215737,10.248,87.797,87.728,7.89223872]
[1773580216044,35.72,87.827,87.728,7.89223872]
[1773580216747,35.72,87.827,87.711,20.70455352]
[1773580216748,10.247,87.808,87.739,7.90416883]
[1773580217244,10.245,87.82,87.76,7.90416883]
[1773580217850,35.72,87.827,87.773,7.90429022]
[1773580218746,35.72,87.827,87.684,20.522]
[1773580218747,35.72,87.827,87.721,7.89759272]
[1773580219148,10.246,87.813,87.753,7.89759272]
[1773580219845,8.24496167,87.856,87.753,7.89759272]
[1773580220048,35.72,87.855,87.753,7.89759272]
[1773580220249,35.72,87.854,87.753,7.89759272]
[1773580220647,10.245,87.826,87.755,7.88632866]
[1773580221246,10.245,87.826,87.766,7.88632866]
[1773580221448,35.72,87.854,87.766,7.88632866]
[1773580221449,10.243,87.836,87.766,7.88632866]
[1773580222547,10.243,87.836,87.769,7.97169839]
[1773580223051,10.244,87.827,87.769,7.97169839]
[1773580224652,10.243,87.838,87.769,7.97169839]
[1773580225151,35.72,87.858,87.769,7.97169839]
[1773580225352,10.244,87.829,87.769,7.97169839]
[1773580225851,35.72,87.858,87.771,7.99593852]
[1773580226248,10.244,87.831,87.774,7.99593852]
[1773580226451,8.63174679,87.857,87.75,7.99706925]
[1773580226657,35.72,87.858,87.75,7.99706925]
[1773580226851,10.248,87.796,87.75,7.99706925]
[1773580227748,10.351195,87.852,87.75,7.99706925]
[1773580228458,20.484,87.851,87.75,7.99706925]
[1773580229551,10.247,87.802,87.75,7.99706925]
[1773580231454,10.246,87.812,87.753,8.02209823]
[1773580232368,16.88018483,87.851,87.755,8.02180834]
[1773580232567,10.351195,87.848,87.755,8.02180834]
[1773580232766,10.351195,87.844,87.755,8.02180834]
[1773580233166,10.351195,87.84,87.755,8.02180834]
[1773580233575,10.249,87.792,87.755,8.02180834]
[1773580233870,20.486,87.839,87.755,8.02180834]
[1773580235867,8.63174679,87.854,87.755,8.02180834]
[1773580236164,10.351195,87.856,87.758,8.053549]
[1773580236368,10.351195,87.852,87.758,8.053549]
[1773580236571,10.248,87.795,87.739,8.05345196]
[1773580237467,10.248,87.795,87.742,8.05460817]
[1773580238272,10.248,87.795,87.746,8.05460817]
[1773580238972,10.249,87.785,87.746,8.05460817]
[1773580239170,35.74,87.816,87.714,8.06069686]
[1773580239475,35.74,87.816,87.719,8.06069686]
[1773580240276,10.252,87.762,87.719,8.06069686]
[1773580241271,29.12079796,87.815,87.719,8.06069686]
[1773580241478,8.62879796,87.815,87.719,8.06069686]
[1773580242079,20.493,87.811,87.719,8.06069686]
[1773580242475,8.62879796,87.815,87.719,8.06069686]
[1773580242679,10.252,87.759,87.719,8.06069686]
[1773580243279,20.493,87.809,87.719,8.06069686]
[1773580244684,10.25,87.779,87.721,8.09036638]
[1773580245182,20.493,87.809,87.721,8.09036638]
[1773580245681,8.62879796,87.815,87.721,8.09036638]
[1773580245884,8.62879796,87.815,87.698,8.09128246]
[1773580246073,8.62879796,87.815,87.589,70.39934427]
[1773580246074,0.04216475,87.783,87.657,20.70455352]
[1773580246279,0.04216475,87.76,87.602,28.27880957]
[1773580246584,0.04216475,87.72,87.62,21.20751996]
[1773580246779,0.04216475,87.72,87.63,21.20751996]
[1773580247184,35.74,87.727,87.626,21.20751996]
[1773580247384,35.74,87.731,87.626,21.20751996]
[1773580247680,8.62879796,87.764,87.634,21.20751996]
[1773580247886,35.74,87.763,87.654,21.20751996]
[1773580248081,35.74,87.763,87.656,4.0821111]
[1773580248289,10.255,87.734,87.67,10.263]
[1773580248583,10.255,87.734,87.656,4.0821111]
[1773580249187,10.255,87.734,87.669,4.05541964]
[1773580249988,10.256,87.725,87.669,4.05541964]
[1773580250884,10.255,87.735,87.671,3.99613846]
[1773580252590,10.255,87.735,87.673,4.06519762]
[1773580253989,0.12130183,87.734,87.673,4.06519762]
[1773580254589,0.12714495,87.751,87.673,4.06519762]
[1773580255189,10.257,87.718,87.673,4.06519762]
[1773580255491,0.12714495,87.74,87.673,4.06519762]
[1773580256791,10.256,87.731,87.673,4.06519762]
[1773580258291,10.257,87.721,87.673,4.06519762]
[1773580258683,0.0793382,87.726,87.647,4.06519762]
[1773580258883,0.0793382,87.733,87.647,4.06519762]
[1773580259284,0.0793382,87.733,87.581,35.76]
[1773580259285,10.257,87.718,87.65,4.06519762]
[1773580259690,0.0793382,87.733,87.65,4.06519762]
[1773580260092,10.259,87.706,87.65,4.06519762]
[1773580260596,0.06414614,87.717,87.644,4.06519762]
[1773580262397,10.258,87.707,87.646,4.06519762]
[1773580262794,0.06414614,87.717,87.646,4.06519762]
[1773580262991,0.15533498,87.737,87.646,4.06519762]
[1773580263987,10.255,87.734,87.679,4.06519762]
[1773580264393,10.254,87.746,87.682,4.06519762]
[1773580264793,0.19944492,87.77,87.682,4.06519762]
[1773580265690,10.253,87.758,87.686,4.06519762]
[1773580266293,10.251,87.769,87.691,4.06519762]
[1773580266896,10.251,87.769,87.695,4.06519762]
[1773580267099,10.25,87.78,87.695,4.06519762]
[1773580267297,0.2229777,87.786,87.695,4.06519762]
[1773580268095,0.2229777,87.786,87.698,4.06519762]
[1773580268496,0.25375214,87.758,87.698,4.06519762]
[1773580268993,10.253,87.75,87.698,4.06519762]
[1773580269594,35.76,87.779,87.698,4.06519762]
[1773580269595,10.252,87.762,87.698,4.06519762]
[1773580269796,0.25080724,87.761,87.698,4.06519762]
[1773580270497,10.252,87.764,87.7,4.06519762]
[1773580271096,10.253,87.754,87.7,4.06519762]
[1773580271596,0.24821038,87.762,87.702,4.06519762]
[1773580271897,10.252,87.765,87.702,4.06519762]
[1773580272396,10.252,87.765,87.704,4.06519762]
[1773580273391,10.252,87.765,87.708,4.06519762]
[1773580274090,0.25537842,87.779,87.71,4.06519762]
[1773580274285,0.25629546,87.798,87.71,4.06519762]
[1773580275198,0.2815013,87.816,87.726,4.06519762]
[1773580275393,0.2815013,87.84,87.726,4.06519762]
[1773580275598,10.245,87.824,87.77,4.06519762]
[1773580276591,10.243,87.835,87.77,4.06519762]
[1773580276897,0.2815013,87.84,87.77,4.06519762]
[1773580277097,0.2815013,87.84,87.771,4.06519762]
[1773580277400,0.2815013,87.84,87.705,4.06519762]
[1773580278297,0.31135118,87.819,87.746,4.06519762]
[1773580279199,0.31135118,87.819,87.699,35.74]
[1773580279200,10.247,87.801,87.749,4.06519762]
[1773580279496,0.31135118,87.819,87.749,4.06519762]
[1773580280195,10.247,87.801,87.749,4.06519762]
[1773580280787,10.249,87.792,87.749,4.06519762]
[1773580280989,0.30153057,87.803,87.731,4.06519762]
[1773580282101,10.249,87.783,87.731,4.06519762]
[1773580284097,0.30153057,87.803,87.733,3.92514359]
[1773580284098,10.248,87.792,87.733,3.92514359]
[1773580284696,0.26945151,87.819,87.745,3.93341934]
[1773580285604,0.26159808,87.84,87.745,3.93341934]
[1773580286502,10.246,87.811,87.758,10.252]
[1773580286694,10.246,87.811,87.759,3.9344701]
[1773580287394,10.246,87.811,87.762,3.9344701]
[1773580287598,10.245,87.821,87.762,3.9344701]
[1773580287800,0.26159808,87.84,87.762,3.9344701]
[1773580288502,10.244,87.831,87.773,3.9416203]
[1773580289600,10.244,87.831,87.776,3.92412407]
[1773580290298,10.244,87.831,87.777,10.25]
[1773580290496,10.243,87.84,87.778,3.92412407]
[1773580291698,10.243,87.84,87.783,3.92412407]
[1773580292497,10.243,87.84,87.785,3.92412407]
[1773580292697,10.242,87.849,87.785,3.92412407]
[1773580293500,10.242,87.849,87.796,3.93227466]
[1773580296703,10.243,87.84,87.796,3.93227466]
[1773580297798,10.242,87.849,87.796,3.93227466]
[1773580298905,10.50057957,87.849,87.796,3.93227466]
[1773580299608,10.242,87.845,87.796,3.93227466]
[1773580300006,10.243,87.843,87.796,3.93227466]
[1773580300207,0.25881293,87.842,87.796,3.93227466]
[1773580300505,0.25879798,87.839,87.777,3.93874611]
[1773580300806,0.25879798,87.839,87.751,3.93874611]
[1773580301310,10.246,87.817,87.76,3.93874611]
[1773580301814,10.47840005,87.812,87.761,10.252]
[1773580302003,0.23240005,87.811,87.762,3.95194507]
[1773580302509,0.19982231,87.809,87.762,3.95194507]
[1773580303406,10.247,87.805,87.762,3.95194507]
[1773580303710,0.21308071,87.804,87.742,10.254]
[1773580303905,10.46008071,87.803,87.743,3.96160474]
[1773580304209,0.21308071,87.802,87.743,3.96160474]
[1773580305505,0.21308071,87.802,87.745,3.97251178]
[1773580306716,0.21308071,87.802,87.752,3.97675404]
[1773580307314,10.246,87.814,87.757,3.97675404]
[1773580307715,0.19200292,87.864,87.757,3.97675404]
[1773580307911,0.19200292,87.832,87.761,3.97214364]
[1773580309614,10.245,87.826,87.763,3.97101718]
[1773580310009,10.245,87.822,87.764,10.252]
[1773580310215,10.245,87.822,87.765,3.97101718]
[1773580310817,0.19425585,87.825,87.768,3.96738172]
[1773580311719,10.244,87.831,87.768,3.96738172]
[1773580312512,0.18183597,87.826,87.772,3.97121535]
[1773580313714,0.22144549,87.823,87.772,3.97121535]
[1773580314521,10.246,87.813,87.772,3.97121535]
[1773580316019,10.46644549,87.823,87.772,3.97121535]
[1773580316623,0.2440869,87.818,87.757,3.94659605]
[1773580317513,10.246,87.817,87.761,10.252]
[1773580317723,10.246,87.817,87.762,3.93428575]
[1773580318324,10.245,87.825,87.766,3.93428575]
[1773580318825,10.246,87.816,87.767,3.95961992]
[1773580319020,0.26870749,87.833,87.767,3.95961992]
[1773580320519,10.244,87.832,87.777,3.95371]
[1773580320725,0.26870749,87.833,87.777,3.95371]
[1773580320933,0.22985898,87.861,87.777,3.95371]
[1773580321225,0.22985898,87.841,87.78,3.95371]
[1773580321423,0.22985898,87.841,87.766,3.95371]
[1773580322123,0.25454571,87.821,87.766,3.95371]
[1773580323731,0.25258945,87.856,87.766,3.95371]
[1773580324232,0.25258945,87.856,87.712,35.76]
[1773580324233,0.25258945,87.805,87.681,3.94234477]
[1773580324525,0.45477469,87.803,87.681,3.94234477]
[1773580324727,0.45477469,87.74,87.681,3.94234477]
[1773580325027,0.45477469,87.74,87.681,0.00034477]
[1773580325222,0.45477469,87.74,87.602,35.76]
[1773580325426,3.83905637,87.717,87.637,10.267]
[1773580325830,3.83905637,87.717,87.602,35.76]
[1773580326024,3.83905637,87.689,87.611,10.27]
[1773580326532,3.83905637,87.689,87.598,10.271]
[1773580326727,3.83905637,87.689,87.566,35.76]
[1773580327233,3.83905637,87.673,87.591,3.74172599]
[1773580327430,3.83905637,87.747,87.591,3.74172599]
[1773580327730,3.83905637,87.687,87.592,3.74172599]
[1773580329331,10.262,87.677,87.592,3.74172599]
[1773580329633,3.83905637,87.676,87.592,3.74172599]
[1773580330135,3.83905637,87.672,87.592,3.74172599]
[1773580330430,3.83905637,87.672,87.553,3.74172599]
[1773580330628,10.267,87.634,87.553,3.74172599]
[1773580332034,10.269,87.621,87.553,3.74172599]
[1773580332235,35.78,87.666,87.553,3.74172599]
[1773580332829,10.267,87.636,87.553,3.74172599]
[1773580333834,10.265,87.65,87.555,9.24238807]
[1773580334634,10.265,87.65,87.56,9.23701382]
[1773580335630,10.265,87.65,87.563,9.24110559]
[1773580336028,35.8,87.693,87.563,9.24110559]
[1773580336336,10.263,87.665,87.57,5.0]
[1773580336634,20.51,87.738,87.57,5.0]
[1773580336635,10.26,87.694,87.578,9.25352445]
[1773580337034,35.8,87.716,87.604,9.25352445]
[1773580337435,10.262,87.679,87.604,9.25352445]
[1773580337836,35.8,87.716,87.605,9.15175582]
[1773580338135,10.26,87.693,87.605,9.15175582]
[1773580338432,35.8,87.722,87.607,9.15175582]
[1773580338732,35.8,87.722,87.635,9.14540075]
[1773580338932,9.39261708,87.774,87.635,9.14540075]
[1773580339132,10.252,87.758,87.635,9.14540075]
[1773580339339,10.252,87.758,87.667,9.14540075]
[1773580339535,35.8,87.788,87.667,9.14540075]
[1773580339832,10.254,87.746,87.673,9.23587224]
[1773580340537,10.254,87.746,87.592,35.8]
[1773580340538,10.254,87.746,87.676,9.23587224]
[1773580340834,10.252,87.763,87.676,9.23587224]
[1773580341031,10.252,87.763,87.694,10.26]
[1773580341235,10.252,87.763,87.695,9.35014828]
[1773580341836,10.251,87.775,87.697,9.34851155]
[1773580343130,10.251,87.775,87.7,9.34540657]
[1773580343337,10.252,87.762,87.7,9.34540657]
[1773580343533,35.8,87.788,87.7,9.34540657]
[1773580343731,35.8,87.788,87.615,20.539]
[1773580343732,35.8,87.788,87.652,9.34520526]
[1773580344535,35.8,87.788,87.673,9.34520526]
[1773580345036,10.253,87.757,87.686,9.35576382]
[1773580347236,10.253,87.757,87.688,9.37201233]
[1773580347539,35.8,87.788,87.67,9.37201233]
[1773580348740,10.255,87.739,87.67,9.37201233]
[1773580349336,10.256,87.727,87.67,9.37201233]
[1773580350638,9.4203895,87.787,87.67,9.37201233]
[1773580350837,35.78,87.786,87.67,9.37201233]
[1773580351543,10.253,87.749,87.682,9.38262573]
[1773580352540,10.253,87.749,87.686,9.41116402]
[1773580354242,10.253,87.749,87.689,9.39968316]
[1773580354737,35.78,87.786,87.631,9.39794777]
[1773580355634,35.78,87.786,87.615,20.539]
[1773580355635,10.255,87.74,87.669,9.39826283]
[1773580355837,9.43477861,87.785,87.669,9.39826283]
[1773580356040,35.78,87.786,87.669,9.39826283]
[1773580356335,10.258,87.709,87.669,9.39826283]
[1773580358136,20.502,87.771,87.669,9.39826283]
[1773580358540,10.28877221,87.783,87.669,9.39826283]
[1773580358842,10.28877221,87.782,87.669,9.39826283]
[1773580359141,10.28877221,87.781,87.669,9.39826283]
[1773580359538,10.257,87.718,87.669,9.39826283]
[1773580360041,10.255,87.739,87.669,9.39826283]
[1773580360443,9.45120836,87.785,87.669,9.39826283]
[1773580360640,35.78,87.786,87.62,5.0]
[1773580360641,35.78,87.786,87.688,9.39172061]
[1773580361142,35.78,87.786,87.709,9.39172061]
[1773580362542,10.251,87.771,87.717,10.257]
[1773580362742,10.251,87.771,87.718,9.3917782]
[1773580364939,10.252,87.763,87.718,9.3917782]
[1773580366040,10.251,87.773,87.718,9.3917782]
[1773580366850,35.78,87.831,87.731,9.37608621]
[1773580367139,35.78,87.83,87.731,9.37608621]
[1773580367344,35.78,87.829,87.731,9.37608621]
[1773580367544,35.78,87.828,87.731,9.37608621]
[1773580368341,10.251,87.767,87.731,9.37608621]
[1773580368548,35.78,87.828,87.731,9.37608621]
[1773580368738,35.78,87.844,87.731,9.37608621]
[1773580368939,35.78,87.844,87.753,9.37479009]
[1773580370648,10.245,87.818,87.756,9.41387395]
[1773580371947,10.247,87.808,87.756,9.41387395]
[1773580381154,10.248,87.796,87.756,9.41387395]
[1773580381456,8.85687048,87.843,87.756,9.41387395]
[1773580381856,20.487,87.837,87.756,9.41387395]
[1773580382054,35.78,87.844,87.756,9.41387395]
[1773580382555,10.245,87.826,87.767,9.3771456]
[1773580383449,10.244,87.835,87.773,9.37597318]
[1773580384256,10.244,87.835,87.777,9.37597318]
[1773580384461,10.242,87.844,87.777,9.37597318]
[1773580385158,10.243,87.836,87.78,9.36623659]
[1773580385951,10.242,87.848,87.781,10.25]
[1773580386152,10.242,87.848,87.782,9.36643029]
[1773580386967,35.78,87.933,87.787,9.36474015]
[1773580387158,35.78,87.932,87.787,9.36474015]
[1773580387358,35.78,87.932,87.718,200.42]
[1773580387359,35.78,87.932,87.808,8.37385741]
[1773580387555,10.239,87.869,87.808,8.37385741]
[1773580388363,10.238,87.879,87.808,8.37385741]
[1773580388964,10.238,87.879,87.81,8.42287371]
[1773580389867,20.466,87.926,87.81,8.42287371]
[1773580390057,1.98099272,87.909,87.81,8.42287371]
[1773580392168,10.239,87.871,87.813,8.44767887]
[1773580393366,10.24,87.861,87.813,8.44767887]
[1773580393765,1.98099272,87.909,87.797,8.44943344]
[1773580394568,10.243,87.841,87.797,8.44943344]
[1773580394873,10.243,87.841,87.777,10.25]
[1773580395073,10.243,87.841,87.778,8.45540704]
[1773580395773,20.48,87.865,87.758,8.4524317]
[1773580396772,10.246,87.812,87.758,8.4524317]
[1773580401372,10.247,87.803,87.758,8.4524317]
[1773580402676,10.248,87.794,87.758,8.4524317]
[1773580403672,10.248,87.794,87.729,8.4003803]
[1773580404678,10.248,87.794,87.731,8.40048629]
[1773580405276,10.248,87.794,87.71,5.0]
[1773580405277,10.248,87.794,87.734,8.40048629]
[1773580406177,10.248,87.794,87.738,8.4062733]
[1773580407579,10.248,87.794,87.74,8.41405155]
[1773580409285,10.248,87.794,87.743,8.40939866]
[1773580410080,10.247,87.803,87.745,8.40993096]
[1773580410879,20.484,87.849,87.763,8.41862092]
[1773580411281,8.51172733,87.861,87.763,8.41862092]
[1773580411480,10.243,87.839,87.787,8.41862092]
[1773580415588,10.242,87.848,87.787,8.41862092]
[1773580416191,20.477,87.881,87.787,8.41862092]
[1773580416490,10.28877221,87.868,87.742,8.4263675]
[1773580416694,10.28877221,87.873,87.742,8.4263675]
[1773580416890,8.3951611,87.872,87.742,8.4263675]
[1773580417098,20.479,87.87,87.777,8.42556308]
[1773580417889,16.95590243,87.885,87.781,8.42439007]
[1773580418587,16.95590243,87.885,87.786,8.42439007]
[1773580419494,10.242,87.844,87.786,8.42439007]
[1773580423896,10.243,87.837,87.786,8.42439007]
[1773580425400,10.244,87.827,87.786,8.42439007]
[1773580426397,10.244,87.827,87.768,10.251]
[1773580426398,10.245,87.819,87.769,8.42291916]
[1773580427598,10.246,87.811,87.769,8.42291916]
[1773580429202,10.247,87.804,87.769,8.42291916]
[1773580430212,8.56074133,87.861,87.769,8.42291916]
[1773580430505,10.28877221,87.863,87.769,8.42291916]
[1773580430706,10.28877221,87.864,87.769,8.42291916]
[1773580430903,10.28877221,87.866,87.769,8.42291916]
[1773580431508,10.245,87.821,87.77,10.251]
[1773580431706,10.245,87.821,87.771,8.4182017]
[1773580432207,17.11644529,87.874,87.773,8.4182017]
[1773580432208,10.244,87.83,87.773,8.4182017]
[1773580433608,10.244,87.83,87.777,8.43649667]
[1773580434106,10.245,87.823,87.777,8.43649667]